[Event "Chessable English Womens-ch 2022"]
[Site "Kenilwoth"]
[Date "2022.05.20"]
[Round "4.5"]
[White "Mohan, Meghana"]
[Black "Dicen, Elis Denele"]
[Result "0-1"]
[ECO "E03"]
[WhiteElo "1613"]
[BlackElo "1635"]
[Annotator "NA COMBH"]
[PlyCount "62"]
[EventDate "2022.05.18"]
[EventType "swiss"]
[EventCountry "ENG"]
[SourceTitle "playchess.com"]
[Source "ChessBase"]
[SourceQuality "1"]
[TimeControl "5400+30"]

1. d4 {[%emt 0:00:45]} d5 {[%emt 0:00:13]} 2. c4 {[%emt 0:00:24]} e6 {[%emt 0:00:15]} 3. Nf3 {[%emt 0:00:13]} Nf6 {[%emt 0:00:18]} 4. g3 {[%emt 0:00:37]} dxc4 {[%emt 0:00:26]} 5. Qa4+ {[%emt 0:00:34]} Nbd7 {[%emt 0:00:25]} 6. Qxc4 {[%emt 0:01:45]} a6 {[%emt 0:00:34]} 7. Bg2 {[%emt 0:00:52]} b5 {[%emt 0:01:13]} 8. Qc2 {[%emt 0:00:33]} Bb7 {[%emt 0:00:59]} 9. a3 {[%emt 0:01:24]} c5 {[%emt 0:01:08]} 10. dxc5 {[%emt 0:02:02]} Bxc5 {[%emt 0:00:49]} 11. b4 {[%emt 0:00:45]} Bb6 {[%emt 0:01:26]} 12. O-O {[%emt 0:00:48]} Rc8 {[%emt 0:01:36]} 13. Nc3 {[%emt 0:02:43]} Nd5 {[%emt 0:03:40]} 14. Bb2 {[%emt 0:00:24]} Nxc3 {[%emt 0:03:35]} 15. Bxc3 {[%emt 0:02:41]} Bxf3 {[%emt 0:01:48]} 16. Bxf3 {[%emt 0:01:44]} Bd4 {[%emt 0:00:33]} 17. Rac1 {[%emt 0:01:42]} Rxc3 {[%emt 0:05:00]} 18. Qe4 {[%emt 0:00:39]} Nf6 {[%emt 0:03:19]} 19. Qb7 {[%emt 0:01:54]} Rxc1 {[%emt 0:03:07]} 20. Rxc1 {[%emt 0:00:08]} O-O {[%emt 0:01:20]} 21. Rc7 {[%emt 0:03:27]} Bb2 {[%emt 0:02:36]} 22. g4 {[%emt 0:00:41]} Bxa3 {[%emt 0:01:44]} 23. g5 {[%emt 0:01:38]} Nd5 {[%emt 0:01:40]} 24. Rd7 {[%emt 0:02:14]} Qxg5+ {[%emt 0:00:41]} 25. Kf1 {[%emt 0:00:30]} h6 {[%emt 0:01:34]} 26. Qxa6 {[%emt 0:01:22]} Bxb4 {[%emt 0:01:22]} 27. Bxd5 {[%emt 0:01:16]} exd5 {[%emt 0:01:01]} 28. Qxb5 {[%emt 0:04:18]} Rc8 {[%emt 0:01:43]} 29. e3 {[%emt 0:01:12]} Rc1+ {[%emt 0:00:54]} 30. Ke2 {[%emt 0:00:47]} Qg4+ {[%emt 0:01:05]} 31. Kd3 {[%emt 0:01:21]} Qd1# {[%emt 0:00:36]} 0-1

[Event "Chessable English Womens-ch 2022"]
[Site "Kenilwoth"]
[Date "2022.05.21"]
[Round "5.1"]
[White "Catabay, Mae Katelyn Rose"]
[Black "Gamal, Alaa"]
[Result "0-1"]
[ECO "B27"]
[WhiteElo "1321"]
[BlackElo "1651"]
[Annotator "NA RC COMBH"]
[PlyCount "106"]
[EventDate "2022.05.18"]
[EventType "swiss"]
[EventCountry "ENG"]
[SourceTitle "playchess.com"]
[Source "ChessBase"]
[SourceQuality "1"]
[TimeControl "5400+30"]

1. e4 {[%emt 0:00:03]} c5 {[%emt 0:00:31]} 2. Nf3 {[%emt 0:00:27]} g6 {[%emt 0:00:13]} 3. d4 {[%emt 0:00:37]} cxd4 {[%emt 0:01:36]} 4. Nxd4 {[%emt 0:00:13]} Nf6 {[%emt 0:00:19]} 5. f3 {[%emt 0:01:01]} Bg7 {[%emt 0:00:52]} 6. Be3 {[%emt 0:01:24]} O-O {[%emt 0:00:50]} 7. Bd3 {[%emt 0:03:33]} d6 {[%emt 0:06:21]} 8. O-O {[%emt 0:06:10]} Bd7 {[%emt 0:00:26]} 9. c4 {[%emt 0:01:17]} Nc6 {[%emt 0:02:27]} 10. Nc3 {[%emt 0:01:53]} Ng4 {[%emt 0:09:09]} 11. Nxc6 {[%emt 0:07:57]} Nxe3 {[%emt 0:00:02]} 12. Qe2 {[%emt 0:00:27]} Bxc6 {[%emt 0:01:02]} 13. Qxe3 {[%emt 0:00:23]} Qa5 {[%emt 0:00:37]} 14. Rfc1 {[%emt 0:03:29]} Qb4 {[%emt 1:13:05]} 15. Rab1 {[%emt 0:06:08]} Qc5 {[%emt 0:00:00]} 16. Qxc5 {[%emt 0:01:12]} dxc5 {[%emt 0:00:00]} 17. Nd5 {[%emt 0:02:37]} Rae8 {[%emt 0:00:00]} 18. Kf1 {[%emt 0:09:19]} e6 {[%emt 0:00:00]} 19. Nf4 {[%emt 0:02:32]} Bh6 {[%emt 0:00:00]} 20. g3 {[%emt 0:00:34]} e5 {[%emt 0:00:00]} 21. Nd5 {[%emt 0:00:23]} Bxd5 {[%emt 0:00:00]} 22. cxd5 {[%emt 0:00:24]} Bxc1 {[%emt 0:00:00]} 23. Rxc1 {[%emt 0:00:07]} Rc8 {[%emt 0:00:00]} 24. Ke2 {[%emt 0:00:19]} a6 {[%emt 0:00:00]} 25. a4 {[%emt 0:01:32]} f5 {[%emt 0:00:00]} 26. b3 {[%emt 0:02:35]} Kg7 {[%emt 0:00:00]} 27. Kd2 {[%emt 0:02:34]} Kf6 {[%emt 0:00:00]} 28. Ke3 {[%emt 0:05:33]} Ke7 {[%emt 0:00:00]} 29. Ke2 {[%emt 0:03:38]} Kd6 {[%emt 0:00:00]} 30. Rc2 {[%emt 0:02:14]} Rb8 {[%emt 0:00:00]} 31. Ra2 {[%emt 0:02:16]} f4 {[%emt 0:00:00]} 32. g4 {[%emt 0:02:13]} h5 {[%emt 0:00:00]} 33. g5 {[%emt 0:01:49]} h4 {[%emt 0:00:00]} 34. Kd2 {[%emt 0:02:13]} Rh8 {[%emt 0:00:00]} 35. Kc3 {[%emt 0:00:29]} h3 {[%emt 0:00:00]} 36. Ra1 {[%emt 0:01:09]} Rh5 {[%emt 0:00:00]} 37. Rg1 {[%emt 0:00:56]} b5 {[%emt 0:00:00]} 38. a5 {[%emt 0:00:53]} Rhh8 {[%emt 0:00:00]} 39. Re1 {[%emt 0:03:57]} c4 {[%emt 0:00:00]} 40. Bf1 {[%emt 0:11:26]} cxb3 {[%emt 0:00:00]} 41. Kxb3 {[%emt 0:00:06]} Rbc8 {[%emt 0:00:00]} 42. Bd3 {[%emt 0:00:38]} Rc7 {[%emt 0:00:00]} 43. Bf1 {[%emt 0:06:05]} Rh5 {[%emt 0:00:00]} 44. Re2 {[%emt 0:03:10]} Rc1 {[%emt 0:00:00]} 45. Rf2 {[%emt 0:00:22]} Ra1 {[%emt 0:00:00]} 46. Kb4 {[%emt 0:01:04]} Ra4+ {[%emt 0:00:00]} 47. Kb3 {[%emt 0:00:13]} Rxa5 {[%emt 0:00:00]} 48. Kb2 {[%emt 0:01:43]} Rxg5 {[%emt 0:00:00]} 49. Bxh3 {[%emt 0:00:19]} Ra4 {[%emt 0:00:00]} 50. Kb3 {[%emt 0:02:25]} Rg1 {[%emt 0:00:00]} 51. Rb2 {[%emt 0:00:48]} Rc1 {[%emt 0:00:00]} 52. Be6 {[%emt 0:00:38]} Rac4 {[%emt 0:00:00]} 53. Ka2 {[%emt 0:00:35]} R4c3 {[%emt 0:00:00]} 0-1

[Event "Chessable English Womens-ch 2022"]
[Site "Kenilwoth"]
[Date "2022.05.21"]
[Round "5.2"]
[White "Yao, Lan"]
[Black "Milewska, Agnieszka"]
[Result "1-0"]
[ECO "C54"]
[WhiteElo "2276"]
[BlackElo "1677"]
[Annotator "TA"]
[PlyCount "109"]
[EventDate "2022.05.18"]
[EventType "swiss"]
[EventCountry "ENG"]
[SourceTitle "playchess.com"]
[Source "ChessBase"]
[SourceQuality "1"]
[TimeControl "5400+30"]

{[%evp 17,109,12,31,29,29,25,26,21,31,-126,-105,-128,58,54,63,52,56,57,58,47,64,47,42,44,45,44,50,49,56,19,47,0,0,0,0,0,0,0,0,0,0,0,0,0,37,27,39,23,37,11,20,20,67,63,67,66,162,83,178,178,243,156,543,494,779,262,923,853,2827,1093,2002,1045,29973,29975,29974,29975,29974,29975,29973,29974,2275,0,1624,1327,5143,2369,29988,29983,29983,29984,29984,29985,29983,29984]} 1. e4 {[%emt 0:00:02]} e5 {[%emt 0:00:00]} 2. Nf3 {[%emt 0:00:06]} Nc6 {[%emt 0:00:18]} 3. Bc4 {[%emt 0:00:13]} Bc5 {[%emt 0:00:01]} 4. c3 {[%emt 0:00:11]} d6 {[%emt 0:00:27]} 5. d3 {[%emt 0:00:41]} Nf6 {[%emt 0:00:18]} 6. a4 {[%emt 0:00:15]} a6 {[%emt 0:00:16]} 7. O-O {[%emt 0:00:26]} O-O {[%emt 0:00:14]} 8. h3 {[%emt 0:00:08]} h6 {[%emt 0:00:21]} 9. Nbd2 {[%emt 0:00:08]} Be6 {[%emt 0:00:33]} 10. Bxe6 {[%emt 0:00:13] C54: Giuoco Piano: 4 c3 Nf6, main lines with 5 d4 and 5 d3.} fxe6 {[%emt 0:00:02]} 11. b4 {[%emt 0:00:31]} Ba7 {[%emt 0:00:15]} 12. Nc4 {[%emt 0:01:48] White has an edge.} Qe8 {[%emt 0:01:58] [#]} 13. b5 $146 {[%emt 0:05:39]} (13. Be3 $14) ({Predecessor:} 13. Be3 Bxe3 14. Nxe3 Nh5 15. g3 Rd8 16. Qe2 Nf6 17. Kg2 Ne7 18. Ng4 Ng6 19. Nxf6+ Rxf6 {½-½ (34) Hou,Y (2651)-Jakovenko,D (2709) Sharjah 2017}) 13... axb5 $17 {[%emt 0:01:44]} 14. axb5 {[%emt 0:00:08] [#] Ba3 is the strong threat.} Ne7 $2 {[%emt 0:00:09]} (14... Bxf2+ $1 $17 {[%mdl 512]} 15. Kxf2 (15. Rxf2 Rxa1 16. bxc6 Qxc6 $17) 15... Rxa1 16. bxc6 Qxc6) 15. b6 $1 $14 {[%emt 0:00:32]} Bxb6 {[%emt 0:00:25]} 16. Rxa8 {[%emt 0:00:09]} Qxa8 {[%emt 0:00:06]} 17. Nxb6 {[%emt 0:00:03]} cxb6 {[%emt 0:00:03]} 18. Qb3 {[%emt 0:00:24][%csl LRb6,LRe6] Against Qa2} Qc8 {[%emt 0:02:29]} 19. Ba3 {[%emt 0:06:16]} Qd7 {[%emt 0:04:05]} 20. Qxb6 {[%emt 0:01:38]} Nc6 {[%emt 0:00:59]} 21. Re1 {[%emt 0:24:00]} Ra8 {[%emt 0:04:41]} 22. Bc1 {[%emt 0:01:00]} Ra6 {[%emt 0:04:32]} 23. Qe3 {[%emt 0:01:59]} b5 {[%emt 0:01:48]} 24. d4 {[%emt 0:11:42]} (24. Qe2 $14) 24... exd4 $11 {[%emt 0:01:03]} 25. cxd4 {[%emt 0:01:31]} Ra4 {[%emt 0:07:21]} 26. Bb2 {[%emt 0:11:51][%cal Od4d5]} Na5 {[%emt 0:02:55]} 27. Nd2 {[%emt 0:03:40]} Nc4 {[%emt 0:02:49]} 28. Nxc4 {[%emt 0:00:06]} bxc4 {[%emt 0:00:23]} 29. d5 $1 {[%emt 0:04:41] And now Bxf6 would win.} e5 {[%emt 0:09:44]} 30. Bc3 {[%emt 0:03:41]} Qb5 {[%emt 0:02:23]} 31. f4 {[%emt 0:02:40]} Ra3 {[%emt 0:14:50]} 32. fxe5 {[%emt 0:01:29]} dxe5 {[%emt 0:01:52]} 33. Qf3 {[%emt 0:03:14]} Qc5+ {[%emt 0:02:20]} 34. Kh2 {[%emt 0:03:26]} Qd6 {[%emt 0:04:57]} (34... Rb3 $11) 35. Rc1 $14 {[%emt 0:04:36]} Nd7 {[%emt 0:05:09]} 36. Qg4 {[%emt 0:01:47]} Ra8 {[%emt 0:05:40] [#] Black is on the road to losing.} (36... Qf6 $14) 37. Bd2 {[%emt 0:02:14]} (37. Rb1 $1 $18 {[%cal Rb1b7]}) 37... Ra4 {[%emt 0:07:50]} (37... Nf6 $16 {was necessary.} 38. Qf5 Rf8) 38. Rc3 $18 {[%emt 0:00:44] Black must now prevent Rg3.} Nc5 {[%emt 0:02:36]} (38... Nf6 {was called for.} 39. Qf5 (39. Qc8+ Kh7 $18) 39... Kh8 40. Qc8+ Kh7) 39. Rg3 {[%emt 0:00:43][%csl Gg3][%cal Rg4g7]} Ra7 {[%emt 0:03:07]} (39... Qd7 $16 {is a better chance.}) 40. Bb4 {[%emt 0:00:31]} Rc7 {[%emt 0:00:28] Against Qc8+} (40... Qc7 $142 41. d6 (41. Qf5 Nd3 $16) 41... Qxd6 42. Qc8+ Kh7 43. Bxc5 Qd7) 41. Qf5 $2 {[%emt 0:01:12]} (41. Bxc5 Qxc5 42. Qe6+ Rf7 43. d6) 41... Qb6 {[%emt 0:02:06]} (41... Qd7 42. Qxe5 Nd3) 42. Qxe5 {[%emt 0:01:53]} Nd3 {[%emt 0:00:14]} 43. Qe8+ {[%emt 0:00:13]} Kh7 {[%emt 0:00:13]} 44. Bc3 {[%emt 0:00:29]} Nc1 {[%emt 0:03:16]} 45. Qf8 {[%emt 0:01:05]} Qa7 {[%emt 0:00:17]} 46. Qf5+ {[%emt 0:00:20]} Kg8 {[%emt 0:00:24]} 47. Qe6+ {[%emt 0:00:42]} Kh7 {[%emt 0:00:17]} 48. Qg6+ {[%emt 0:00:39]} Kg8 {[%emt 0:00:03]} 49. Qe6+ $40 {[%emt 0:02:07][%mdl 128] White attacks.} Kh7 {[%emt 0:00:01]} 50. Qg4 {[%emt 0:00:09] White threatens d6 and mate.} Rf7 {[%emt 0:01:53]} 51. d6 {[%emt 0:00:55]} (51. e5 $142 Ne2 52. Qxe2 Rf2 53. Qe4+ Kg8 54. e6 Rf1 55. Rxg7+ Qxg7 56. Bxg7) 51... Qd7 {[%emt 0:02:11] [#]} 52. Qxg7+ $1 {[%emt 0:00:45][%mdl 512] White mates.} Rxg7 {[%emt 0:00:51]} 53. Rxg7+ {[%emt 0:00:02]} Qxg7 {[%emt 0:00:15]} 54. Bxg7 {[%emt 0:00:02]} Kxg7 {[%emt 0:00:24]} 55. d7 {[%emt 0:00:02] Weighted Error Value: White=0.45/Black=0.77} 1-0

[Event "Chessable English Womens-ch 2022"]
[Site "Kenilwoth"]
[Date "2022.05.21"]
[Round "5.3"]
[White "Dicen, Elis Denele"]
[Black "Pert, Nina"]
[Result "0-1"]
[ECO "D94"]
[WhiteElo "1635"]
[BlackElo "1620"]
[Annotator "NA RC COMBH"]
[PlyCount "86"]
[EventDate "2022.05.18"]
[EventType "swiss"]
[EventCountry "ENG"]
[SourceTitle "playchess.com"]
[Source "ChessBase"]
[SourceQuality "1"]
[TimeControl "5400+30"]

1. d4 {[%emt 0:00:03]} d5 {[%emt 0:00:06]} 2. Nf3 {[%emt 0:00:18]} Nf6 {[%emt 0:00:42]} 3. e3 {[%emt 0:01:04]} g6 {[%emt 0:03:21]} 4. c4 {[%emt 0:01:34]} c6 {[%emt 0:01:41]} 5. Nc3 {[%emt 0:01:17]} Bg7 {[%emt 0:01:15]} 6. Bd3 {[%emt 0:02:10]} O-O {[%emt 0:01:42]} 7. O-O {[%emt 0:01:16]} a6 {[%emt 0:06:29]} 8. cxd5 {[%emt 0:02:57]} cxd5 {[%emt 0:00:38]} 9. Bd2 {[%emt 0:02:11]} Nc6 {[%emt 0:01:24]} 10. Rc1 {[%emt 0:02:26]} Qd6 {[%emt 0:02:31]} 11. Re1 {[%emt 0:18:31]} Re8 {[%emt 0:04:19]} 12. a3 {[%emt 1:02:43]} e5 {[%emt 0:04:12]} 13. dxe5 {[%emt 0:00:00]} Nxe5 {[%emt 0:00:06]} 14. Nxe5 {[%emt 0:00:00]} Qxe5 {[%emt 0:03:16]} 15. f4 {[%emt 0:00:00]} Qd6 {[%emt 0:01:25]} 16. h3 {[%emt 0:00:00]} Bd7 {[%emt 0:06:11]} 17. Ne2 {[%emt 0:00:00]} Nh5 {[%emt 0:13:11]} 18. Qb3 {[%emt 0:00:00]} Bc6 {[%emt 0:03:04]} 19. Bb4 {[%emt 0:00:00]} Qd8 {[%emt 0:04:30]} 20. Bc5 {[%emt 0:00:00]} Qh4 {[%emt 0:01:56]} 21. Qb4 {[%emt 0:00:00]} Rad8 {[%emt 0:05:04]} 22. Bd4 {[%emt 0:00:00]} Bd7 {[%emt 0:06:04]} 23. Kh2 {[%emt 0:00:00]} a5 {[%emt 0:04:42]} 24. Qd2 {[%emt 0:00:00]} Bxh3 {[%emt 0:01:29]} 25. g3 {[%emt 0:00:00]} Nxg3 {[%emt 0:01:24]} 26. Nxg3 {[%emt 0:00:00]} Bg4+ {[%emt 0:00:15]} 27. Kg2 {[%emt 0:00:00]} Qh3+ {[%emt 0:00:11]} 28. Kg1 {[%emt 0:00:02]} Bxd4 {[%emt 0:01:16]} 29. Nf1 {[%emt 0:01:20]} Bf3 {[%emt 0:03:24]} 30. Qh2 {[%emt 0:01:13]} Qxh2+ {[%emt 0:00:30]} 31. Kxh2 {[%emt 0:00:22]} Bb6 {[%emt 0:00:47]} 32. Kg3 {[%emt 0:00:43]} Be4 {[%emt 0:00:27]} 33. Bb5 {[%emt 0:00:21]} Re6 {[%emt 0:00:52]} 34. b4 {[%emt 0:00:23]} d4 {[%emt 0:01:55]} 35. exd4 {[%emt 0:00:39]} Rxd4 {[%emt 0:00:56]} 36. Rc8+ {[%emt 0:00:52]} Kg7 {[%emt 0:01:06]} 37. bxa5 {[%emt 0:00:40]} Bxa5 {[%emt 0:00:10]} 38. Rec1 {[%emt 0:00:22]} Bd3 {[%emt 0:00:31]} 39. Bxd3 {[%emt 0:00:14]} Rxd3+ {[%emt 0:00:04]} 40. Kg2 {[%emt 0:00:24]} Re2+ {[%emt 0:00:08]} 41. Kh1 {[%emt 0:00:22]} Bb6 {[%emt 0:00:50]} 42. Nh2 {[%emt 0:00:31]} Rh3 {[%emt 0:00:09]} 43. Rd1 {[%emt 0:00:18]} Rhxh2# {[%emt 0:00:07]} 0-1

[Event "Chessable English Womens-ch 2022"]
[Site "Kenilwoth"]
[Date "2022.05.21"]
[Round "5.4"]
[White "Mohan, Meghana"]
[Black "Subramanian, Anusha"]
[Result "0-1"]
[ECO "D11"]
[WhiteElo "1613"]
[BlackElo "1671"]
[Annotator "NA RC COMBH"]
[PlyCount "66"]
[EventDate "2022.05.18"]
[EventType "swiss"]
[EventCountry "ENG"]
[SourceTitle "playchess.com"]
[Source "ChessBase"]
[SourceQuality "1"]
[TimeControl "5400+30"]

1. d4 {[%emt 0:00:02]} d5 {[%emt 0:00:05]} 2. Nf3 {[%emt 0:00:44]} Nf6 {[%emt 0:00:07]} 3. g3 {[%emt 0:00:44]} Bf5 {[%emt 0:00:58]} 4. c4 {[%emt 0:02:04]} c6 {[%emt 0:00:55]} 5. Bg2 {[%emt 0:02:06]} e6 {[%emt 0:00:50]} 6. Qb3 {[%emt 0:01:48]} Qb6 {[%emt 0:01:26]} 7. O-O {[%emt 0:03:18]} dxc4 {[%emt 0:01:47]} 8. Qxc4 {[%emt 0:02:03]} Bd6 {[%emt 0:02:41]} 9. Nc3 {[%emt 0:02:19]} O-O {[%emt 0:01:06]} 10. Re1 {[%emt 0:03:39]} Bg6 {[%emt 0:02:03]} 11. Nh4 {[%emt 0:03:47]} Nbd7 {[%emt 0:02:45]} 12. Nxg6 {[%emt 0:03:41]} hxg6 {[%emt 0:00:40]} 13. e4 {[%emt 0:03:30]} Be7 {[%emt 0:01:09]} 14. Bg5 {[%emt 0:03:35]} Rfe8 {[%emt 0:02:25]} 15. e5 {[%emt 0:04:21]} Nd5 {[%emt 0:01:56]} 16. Bxe7 {[%emt 0:07:31]} Rxe7 {[%emt 0:03:09]} 17. Ne4 {[%emt 0:01:11]} c5 {[%emt 0:12:59]} 18. Nc3 {[%emt 0:08:46]} Qb4 {[%emt 0:17:52]} 19. Qb5 {[%emt 0:12:34]} cxd4 {[%emt 0:07:10]} 20. Qxb4 {[%emt 0:05:19]} Nxb4 {[%emt 0:00:20]} 21. Re4 {[%emt 0:01:39]} Nc5 {[%emt 0:06:40]} 22. Rg4 {[%emt 0:03:24]} dxc3 {[%emt 0:05:16]} 23. Rxb4 {[%emt 0:02:45]} Nd3 {[%emt 0:01:06]} 24. Rxb7 {[%emt 0:05:36]} Rxb7 {[%emt 0:00:58]} 25. Bxb7 {[%emt 0:00:26]} Rb8 {[%emt 0:00:11]} 26. Be4 {[%emt 0:00:27]} cxb2 {[%emt 0:01:29]} 27. Rb1 {[%emt 0:00:43]} Nc1 {[%emt 0:00:43]} 28. Kg2 {[%emt 0:01:39]} Nxa2 {[%emt 0:00:19]} 29. Re1 {[%emt 0:00:28]} Nc3 {[%emt 0:00:26]} 30. Bb1 {[%emt 0:01:31]} Nxb1 {[%emt 0:00:20]} 31. Rxb1 {[%emt 0:00:08]} a5 {[%emt 0:00:02]} 32. Kf3 {[%emt 0:00:19]} a4 {[%emt 0:00:05]} 33. Ke3 {[%emt 0:00:31]} a3 {[%emt 0:00:04]} 0-1

[Event "Chessable English Womens-ch 2022"]
[Site "Kenilwoth"]
[Date "2022.05.21"]
[Round "5.5"]
[White "Sengenberger, Sara"]
[Black "Oh, Julie"]
[Result "1-0"]
[ECO "B48"]
[WhiteElo "1435"]
[BlackElo "1373"]
[Annotator "NA RC COMBH"]
[PlyCount "117"]
[EventDate "2022.05.18"]
[EventType "swiss"]
[EventCountry "ENG"]
[SourceTitle "playchess.com"]
[Source "ChessBase"]
[SourceQuality "1"]
[TimeControl "5400+30"]

1. e4 {[%emt 0:00:07]} c5 {[%emt 0:00:10]} 2. Nf3 {[%emt 0:00:11]} e6 {[%emt 0:00:45]} 3. d4 {[%emt 0:00:10]} cxd4 {[%emt 0:00:15]} 4. Nxd4 {[%emt 0:00:07]} a6 {[%emt 0:00:09]} 5. Nc3 {[%emt 0:00:29]} Nc6 {[%emt 0:00:51]} 6. Be3 {[%emt 0:00:28]} Qc7 {[%emt 0:02:10]} 7. Qd2 {[%emt 0:00:31]} Nf6 {[%emt 0:01:12]} 8. O-O-O {[%emt 0:00:32]} b5 {[%emt 0:01:10]} 9. f3 {[%emt 0:00:45]} Bb4 {[%emt 0:04:37]} 10. Nxc6 {[%emt 0:01:12]} Qxc6 {[%emt 0:02:05]} 11. Bd4 {[%emt 0:00:49]} h6 {[%emt 0:07:58]} 12. g4 {[%emt 0:02:20]} Be7 {[%emt 0:16:27]} 13. Bg2 {[%emt 0:10:54]} b4 {[%emt 0:11:49]} 14. Ne2 {[%emt 0:01:49]} Qc4 {[%emt 0:10:21]} 15. Kb1 {[%emt 0:04:24]} d6 {[%emt 0:06:27]} 16. e5 {[%emt 0:04:27]} dxe5 {[%emt 0:08:06]} 17. Bxe5 {[%emt 0:02:53]} O-O {[%emt 0:03:21]} 18. b3 {[%emt 0:08:47]} Qb5 {[%emt 0:01:55]} 19. f4 {[%emt 0:01:13]} Nd5 {[%emt 0:03:11]} 20. c4 {[%emt 0:01:22]} bxc3 {[%emt 0:01:06]} 21. Nxc3 {[%emt 0:00:20]} Bb4 {[%emt 0:03:36]} 22. Bxd5 {[%emt 0:11:50]} exd5 {[%emt 0:02:26]} 23. Bxg7 {[%emt 0:08:17]} Re8 {[%emt 0:04:39]} 24. Qd4 {[%emt 0:05:01]} Bxc3 {[%emt 0:01:41]} 25. Qxc3 {[%emt 0:00:20]} Bb7 {[%emt 0:03:11]} 26. Bxh6 {[%emt 0:03:01]} d4 {[%emt 0:02:41]} 27. Qxd4 {[%emt 0:00:17]} Be4+ {[%emt 0:00:30]} 28. Ka1 {[%emt 0:00:53]} f6 {[%emt 0:00:45]} 29. Qxf6 {[%emt 0:00:34]} Ra7 {[%emt 0:00:47]} 30. Rhe1 {[%emt 0:04:01]} Rf7 {[%emt 0:00:30]} 31. Qg5+ {[%emt 0:01:03]} Qxg5 {[%emt 0:00:36]} 32. Bxg5 {[%emt 0:00:22]} Rff8 {[%emt 0:00:26]} 33. h4 {[%emt 0:04:48]} Bf3 {[%emt 0:00:26]} 34. Rxe8 {[%emt 0:00:22]} Bxd1 {[%emt 0:00:37]} 35. Rxf8+ {[%emt 0:01:41]} Kxf8 {[%emt 0:00:08]} 36. Bh6+ {[%emt 0:00:50]} Kf7 {[%emt 0:00:44]} 37. g5 {[%emt 0:01:28]} Kg6 {[%emt 0:00:16]} 38. Kb2 {[%emt 0:00:34]} Kf5 {[%emt 0:00:27]} 39. Kc3 {[%emt 0:00:29]} Bh5 {[%emt 0:00:40]} 40. g6 {[%emt 0:03:04]} Bxg6 {[%emt 0:00:42]} 41. Kc4 {[%emt 0:00:37]} Ke4 {[%emt 0:00:36]} 42. a3 {[%emt 0:00:30]} Bf7+ {[%emt 0:00:21]} 43. Kc3 {[%emt 0:00:28]} Kd5 {[%emt 0:00:22]} 44. b4 {[%emt 0:00:46]} Kc6 {[%emt 0:00:32]} 45. Kd4 {[%emt 0:00:44]} Kb5 {[%emt 0:00:11]} 46. f5 {[%emt 0:00:24]} Ka4 {[%emt 0:00:20]} 47. Bc1 {[%emt 0:00:15]} Kb5 {[%emt 0:00:52]} 48. Ke5 {[%emt 0:00:31]} Kc6 {[%emt 0:00:27]} 49. Kf6 {[%emt 0:00:25]} Bh5 {[%emt 0:00:20]} 50. Ke7 {[%emt 0:00:25]} Kd5 {[%emt 0:00:37]} 51. f6 {[%emt 0:00:13]} Kc4 {[%emt 0:00:09]} 52. f7 {[%emt 0:00:18]} Bxf7 {[%emt 0:00:08]} 53. Kxf7 {[%emt 0:00:07]} Kb3 {[%emt 0:00:14]} 54. h5 {[%emt 0:00:15]} Kc2 {[%emt 0:00:05]} 55. h6 {[%emt 0:00:16]} Kxc1 {[%emt 0:00:12]} 56. h7 {[%emt 0:00:09]} Kb2 {[%emt 0:00:10]} 57. h8=Q+ {[%emt 0:00:14]} Kxa3 {[%emt 0:00:04]} 58. Qa8 {[%emt 0:00:50]} Kxb4 {[%emt 0:00:23]} 59. Qxa6 {[%emt 0:00:10]} 1-0

[Event "Chessable English Womens-ch 2022"]
[Site "Kenilwoth"]
[Date "2022.05.21"]
[Round "6.1"]
[White "Gamal, Alaa"]
[Black "Milewska, Agnieszka"]
[Result "1-0"]
[ECO "E01"]
[WhiteElo "1651"]
[BlackElo "1677"]
[Annotator "NA COMBH"]
[PlyCount "75"]
[EventDate "2022.05.18"]
[EventType "swiss"]
[EventCountry "ENG"]
[SourceTitle "playchess.com"]
[Source "ChessBase"]
[SourceQuality "1"]
[TimeControl "5400+30"]

1. d4 {[%emt 0:00:42]} d5 {[%emt 0:00:02]} 2. c4 {[%emt 0:00:24]} e6 {[%emt 0:00:01]} 3. Nf3 {[%emt 0:00:09]} Nf6 {[%emt 0:00:20]} 4. g3 {[%emt 0:00:39]} c5 {[%emt 0:00:40]} 5. cxd5 {[%emt 0:00:13]} Nxd5 {[%emt 0:02:39]} 6. Bg2 {[%emt 0:04:04]} Nc6 {[%emt 0:02:51]} 7. O-O {[%emt 0:03:29]} cxd4 {[%emt 0:01:37]} 8. Nxd4 {[%emt 0:00:03]} Bd7 {[%emt 0:06:35]} 9. e4 {[%emt 0:06:04]} Nf6 {[%emt 0:02:18]} 10. Nb5 {[%emt 0:00:19]} a6 {[%emt 0:04:24]} 11. Nd6+ {[%emt 0:00:31]} Bxd6 {[%emt 0:00:02]} 12. Qxd6 {[%emt 0:00:36]} Qe7 {[%emt 0:00:33]} 13. Rd1 {[%emt 0:05:35]} Qxd6 {[%emt 0:01:55]} 14. Rxd6 {[%emt 0:00:02]} Ke7 {[%emt 0:01:29]} 15. Rd1 {[%emt 0:00:13]} e5 {[%emt 0:02:07]} 16. Nc3 {[%emt 0:00:18]} Nd4 {[%emt 0:00:18]} 17. Bg5 {[%emt 0:01:07]} Bc6 {[%emt 0:01:29]} 18. f4 {[%emt 0:09:19]} Ne6 {[%emt 0:02:46]} 19. fxe5 {[%emt 0:06:42]} Nxg5 {[%emt 0:00:21]} 20. exf6+ {[%emt 0:01:51]} gxf6 {[%emt 0:00:46]} 21. Nd5+ {[%emt 0:00:25]} Bxd5 {[%emt 0:00:40]} 22. exd5 {[%emt 0:00:02]} h5 {[%emt 0:02:52]} 23. h4 {[%emt 0:00:45]} Nh7 {[%emt 0:00:21]} 24. d6+ {[%emt 0:00:22]} Kd8 {[%emt 0:00:54]} 25. Bxb7 {[%emt 0:00:38]} Rb8 {[%emt 0:00:22]} 26. Bxa6 {[%emt 0:00:10]} Rxb2 {[%emt 0:00:42]} 27. Rab1 {[%emt 0:00:45]} Rxb1 {[%emt 0:00:30]} 28. Rxb1 {[%emt 0:00:02]} Kd7 {[%emt 0:00:56]} 29. Rb6 {[%emt 0:01:51]} Rd8 {[%emt 0:02:37]} 30. Bb5+ {[%emt 0:00:20]} Ke6 {[%emt 0:00:17]} 31. d7+ {[%emt 0:00:35]} Ke7 {[%emt 0:00:17]} 32. a4 {[%emt 0:00:37]} Nf8 {[%emt 0:00:01]} 33. Rb7 {[%emt 0:01:56]} Ne6 {[%emt 0:01:43]} 34. a5 {[%emt 0:01:52]} Ra8 {[%emt 0:00:35]} 35. a6 {[%emt 0:01:34]} Nc5 {[%emt 0:00:12]} 36. Rc7 {[%emt 0:00:57]} Nxa6 {[%emt 0:06:19]} 37. Rc8 {[%emt 0:00:16]} Nc7 {[%emt 0:00:59]} 38. d8=Q+ {[%emt 0:00:29]} 1-0